[Event "TUR-ch U13-18 Open 2023"]
[Site "Antalya"]
[Date "2023.01.27"]
[Round "9"]
[White "Akkaya, Atakan"]
[Black "Bozkurt, Suleyman Safa"]
[Result "0-1"]
[ECO "C03"]
[WhiteElo "1506"]
[BlackElo "1463"]
[Annotator "NA RC COMBH"]
[PlyCount "88"]
[EventDate "2023.01.17"]
[EventType "swiss"]
[EventCountry "TUR"]
[SourceTitle "playchess.com"]
[Source "ChessBase"]
[SourceQuality "1"]
[TimeControl "5400+30"]

1. e4 e6 2. d4 d5 3. Nd2 Be7 4. e5 c5 5. c3 Nc6 6. Bd3 Qb6 7. Ndf3 cxd4 8. cxd4 Bb4+ 9. Kf1 {[%emt 0:34:00]} Bd7 {[%emt 0:16:00]} 10. Ne2 {[%emt 0:03:30]} Nh6 {[%emt 0:01:30]} 11. g3 {[%emt 0:09:30]} O-O-O {[%emt 0:21:30]} 12. Kg2 {[%emt 0:04:30]} Kb8 {[%emt 0:02:30]} 13. a3 {[%emt 0:06:30]} Be7 {[%emt 0:00:30]} 14. b4 {[%emt 0:00:00]} f6 {[%emt 0:02:30]} 15. Be3 {[%emt 0:02:00]} Ng4 {[%emt 0:04:30]} 16. Bf4 {[%emt 0:04:30]} fxe5 {[%emt 0:02:30]} 17. Nxe5 {[%emt 0:00:30]} Ncxe5 {[%emt 0:00:30]} 18. Bxe5+ {[%emt 0:07:30]} Nxe5 {[%emt 0:00:30]} 19. dxe5 {[%emt 0:00:30]} Rdf8 {[%emt 0:02:30]} 20. Rf1 {[%emt 0:02:30]} g5 {[%emt 0:04:30]} 21. Qd2 {[%emt 0:02:30]} g4 {[%emt 0:18:30]} 22. Qe3 {[%emt 0:04:32]} Qd8 {[%emt 0:00:30]} 23. Nd4 {[%emt 0:03:02]} h5 {[%emt 0:02:30]} 24. Ra2 {[%emt 0:06:46]} Qe8 {[%emt 0:02:30]} 25. Rc2 {[%emt 0:02:34]} Bd8 {[%emt 0:01:18]} 26. Nb3 {[%emt 0:02:34]} Ba4 {[%emt 0:03:55]} 27. Be2 {[%emt 0:01:34]} Bb6 {[%emt 0:00:15]} 28. Qd3 {[%emt 0:02:08]} Bxb3 {[%emt 0:01:23]} 29. Qxb3 {[%emt 0:00:30]} Bd4 {[%emt 0:00:00]} 30. b5 {[%emt 0:00:00]} Qd8 {[%emt 0:01:21]} 31. a4 {[%emt 0:00:28]} Bxe5 {[%emt 0:00:30]} 32. Qe3 {[%emt 0:00:30]} Qf6 {[%emt 0:02:40]} 33. b6 {[%emt 0:01:30]} a6 {[%emt 0:00:30]} 34. a5 {[%emt 0:00:32]} Bd4 {[%emt 0:03:06]} 35. Qa3 {[%emt 0:00:50]} e5 {[%emt 0:00:51]} 36. f3 {[%emt 0:02:01]} Qe6 {[%emt 0:03:37]} 37. Rc7 {[%emt 0:00:34]} h4 {[%emt 0:03:32]} 38. fxg4 {[%emt 0:01:07]} Rxf1 {[%emt 0:00:17]} 39. Bxf1 {[%emt 0:00:11]} h3+ {[%emt 0:01:57]} 40. Kh1 {[%emt 0:00:26]} Qf6 {[%emt 0:00:12]} 41. Bxa6 {[%emt 0:00:39]} bxa6 {[%emt 0:00:31]} 42. Rc1 {[%emt 0:00:29]} Rf8 {[%emt 0:00:45]} 43. Qd3 {[%emt 0:00:13]} Qf2 {[%emt 0:00:23]} 44. Rc8+ {[%emt 0:00:30]} Rxc8 {[%emt 0:00:00]} 0-1

[Event "TUR-ch U13-18 Open 2023"]
[Site "Antalya"]
[Date "2023.01.27"]
[Round "9"]
[White "Kutdemir, Mehmet"]
[Black "Danaci, Ege"]
[Result "0-1"]
[ECO "A34"]
[WhiteElo "1369"]
[BlackElo "2088"]
[Annotator "TA"]
[PlyCount "63"]
[EventDate "2023.01.17"]
[EventType "swiss"]
[EventCountry "TUR"]
[SourceTitle "playchess.com"]
[Source "ChessBase"]
[SourceQuality "1"]
[TimeControl "5400+30"]

{[%evp 9,63,8,26,-27,0,-7,-13,-12,-14,-62,-48,-45,-50,-92,-89,-89,-60,-108,-71,-70,-66,-61,-74,-74,-45,-56,-44,-48,-43,-43,-4,-54,-74,-84,-70,-66,-69,-111,-87,-135,-135,-166,-83,-208,-168,-229,-212,-210,-203,-277,-284,-687,-685,-582,-272,-29997]} 1. Nf3 {Popel,S/Primel,D} Nf6 2. c4 c5 3. g3 Nc6 4. Nc3 d5 5. cxd5 Nxd5 6. Qb3 {[%emt 0:16:30] A34: Symmetrical English: 2 Nc3, lines with ...d5.} (6. Bg2 $142) 6... Nc7 {[%emt 0:26:30]} 7. Bg2 {[%emt 0:00:30]} e5 {[%emt 0:00:30]} 8. d3 {[%emt 0:07:30] The position is equal.} Be7 {[%emt 0:00:30]} 9. Bd2 {[%emt 0:10:30]} (9. O-O $11) 9... O-O $15 {[%emt 0:00:30]} 10. O-O {[%emt 0:00:30]} Rb8 {[%emt 0:04:30]} 11. a4 {[%emt 0:03:30]} Be6 {[%emt 0:03:30] [#]} 12. Qd1 $146 {[%emt 0:01:30]} ({Predecessor:} 12. Qc2 Na6 13. b3 f6 14. Rab1 Qd7 15. Rfc1 Rfc8 16. Qd1 Bf8 17. Nb5 b6 18. Ne1 {½-½ Tartakower,S-Scherbakoff,G Paris Pierre Caillon Cup 1954 (2)}) 12... b6 {[%emt 0:07:30]} 13. Ne1 {[%emt 0:10:30]} (13. Nb5 $15) 13... Nd4 {[%emt 0:02:30]} 14. f4 {[%emt 0:06:30]} Bb3 {[%emt 0:03:30]} 15. Qb1 {[%emt 0:03:30]} exf4 {[%emt 0:01:30] Black is more active.} 16. Bxf4 {[%emt 0:00:30]} Bd6 {[%emt 0:01:30]} 17. e3 {[%emt 0:07:30] [#] Bxd6 is the strong threat.} Bxf4 {[%emt 0:07:30]} 18. Rxf4 {[%emt 0:03:30]} Nde6 $36 {[%emt 0:00:00][%mdl 2048] Black has some pressure.} 19. Rf2 {[%emt 0:01:30]} Nd5 {[%emt 0:01:00]} 20. Nxd5 {[%emt 0:00:30]} (20. Ra3 $11) 20... Bxd5 {[%emt 0:00:00]} 21. Qd1 {[%emt 0:01:30]} Qd7 {[%emt 0:02:00]} 22. e4 {[%emt 0:03:30]} Bb7 {[%emt 0:00:30]} 23. Bh3 {[%emt 0:00:30]} Rbd8 {[%emt 0:01:30][%cal Ob7e4] And now ...Bxe4! would win.} 24. Bxe6 {[%emt 0:02:30]} (24. Qc2 $142) 24... Qxe6 $17 {[%emt 0:03:30]} 25. Qe2 {[%emt 0:00:47]} Rfe8 {[%emt 0:08:30]} (25... c4 $19 26. dxc4 Rd4) 26. Ra3 {[%emt 0:00:53] This move loses the game for White.} (26. Qc2 $17 {was called for.}) 26... f5 {[%emt 0:00:30][%cal Rf5e4]} 27. Ng2 {[%emt 0:00:55]} (27. a5 {is a better defense.}) 27... fxe4 $19 {[%emt 0:01:30]} 28. dxe4 {[%emt 0:00:27]} Qxe4 {[%emt 0:00:00]} 29. Re3 {[%emt 0:04:32]} Qxa4 {[%emt 0:00:00]} 30. Ne1 $2 {[%emt 0:02:15] [#]} (30. h3) 30... Rxe3 {[%emt 0:00:30]} 31. Qxe3 {[%emt 0:00:30]} Qe4 {[%emt 0:00:30] Repels Qe7} (31... Qc6 $142 {[%csl Gb7][%cal Rc6h1]} 32. Nf3 Rf8) 32. Ng2 $2 {[%emt 0:00:00] Weighted Error Value: White=0.52/Black=0.30} (32. Qxe4 $19 Bxe4 33. Re2) 0-1

[Event "TUR-ch U13-18 Open 2023"]
[Site "Antalya"]
[Date "2023.01.27"]
[Round "9"]
[White "Gokdogan, Alperen"]
[Black "Ozgun, Yigit Deniz"]
[Result "0-1"]
[ECO "E60"]
[WhiteElo "1365"]
[BlackElo "1769"]
[Annotator "NA RC COMBH"]
[PlyCount "76"]
[EventDate "2023.01.17"]
[EventType "swiss"]
[EventCountry "TUR"]
[SourceTitle "playchess.com"]
[Source "ChessBase"]
[SourceQuality "1"]
[TimeControl "5400+30"]

1. d4 Nf6 2. c4 c5 3. d5 b5 4. cxb5 a6 5. bxa6 g6 6. Nc3 Bg7 7. Nf3 O-O 8. g3 Nxa6 9. Bg2 d6 10. O-O Bf5 11. Nh4 Bd7 12. e4 Qb6 {[%emt 0:16:30]} 13. Kh1 {[%emt 0:33:00]} Ne8 {[%emt 0:01:30]} 14. Qe2 {[%emt 0:03:30]} Nec7 {[%emt 0:00:30]} 15. Rd1 {[%emt 0:07:30]} Nb5 {[%emt 0:00:30]} 16. Nxb5 {[%emt 0:01:30]} Bxb5 {[%emt 0:00:30]} 17. Qg4 {[%emt 0:11:30]} Nb4 {[%emt 0:02:30]} 18. Bf1 {[%emt 0:04:30]} Bxf1 {[%emt 0:02:30]} 19. Rxf1 {[%emt 0:00:30]} Nxa2 {[%emt 0:00:30]} 20. Ng2 {[%emt 0:00:30]} Nxc1 {[%emt 0:00:30]} 21. Raxc1 {[%emt 0:00:30]} Qxb2 {[%emt 0:00:30]} 22. Qd7 {[%emt 0:07:30]} Bf6 {[%emt 0:10:30]} 23. Ne3 {[%emt 0:02:30]} Rfd8 {[%emt 0:00:30]} 24. Qg4 {[%emt 0:00:30]} Ra4 {[%emt 0:00:30]} 25. Nc4 {[%emt 0:06:30]} Qd4 {[%emt 0:01:30]} 26. Rfd1 {[%emt 0:00:30]} Qxf2 {[%emt 0:00:30]} 27. Rd2 {[%emt 0:01:30]} Rxc4 {[%emt 0:02:30]} 28. Rxf2 {[%emt 0:00:30]} Rxc1+ {[%emt 0:00:30]} 29. Kg2 {[%emt 0:00:00]} Rb8 {[%emt 0:01:30]} 30. Qf4 {[%emt 0:07:43]} Rc4 {[%emt 0:01:30]} 31. Rf1 {[%emt 0:05:25]} Rbb4 {[%emt 0:00:30]} 32. Re1 {[%emt 0:01:34]} Rc2+ {[%emt 0:00:30]} 33. Kh3 {[%emt 0:00:30]} Rbb2 {[%emt 0:00:30]} 34. Rh1 {[%emt 0:01:48]} c4 {[%emt 0:00:30]} 35. Qg4 {[%emt 0:01:57]} c3 {[%emt 0:00:30]} 36. Qc8+ {[%emt 0:00:30]} Kg7 {[%emt 0:00:00]} 37. Ra1 {[%emt 0:00:34]} Rxh2+ {[%emt 0:00:00]} 38. Kg4 {[%emt 0:00:00]} Rbf2 {[%emt 0:00:00]} 0-1

[Event "TUR-ch U13-18 Open 2023"]
[Site "Antalya"]
[Date "2023.01.27"]
[Round "9"]
[White "Gupluce, Melih"]
[Black "Dirikolu, Deniz"]
[Result "1-0"]
[ECO "B21"]
[WhiteElo "1309"]
[BlackElo "1868"]
[Annotator "NA RC COMBH"]
[PlyCount "131"]
[EventDate "2023.01.17"]
[EventType "swiss"]
[EventCountry "TUR"]
[SourceTitle "playchess.com"]
[Source "ChessBase"]
[SourceQuality "1"]
[TimeControl "5400+30"]

1. e4 {[%emt 0:01:00]} c5 {[%emt 0:01:00]} 2. Be2 {[%emt 0:00:30]} Nc6 {[%emt 0:00:30]} 3. f4 {[%emt 0:00:30]} d5 {[%emt 0:00:30]} 4. d3 {[%emt 0:00:30]} e6 {[%emt 0:00:30]} 5. Nf3 {[%emt 0:00:30]} Bd6 {[%emt 0:00:00]} 6. O-O {[%emt 0:00:00]} Nge7 {[%emt 0:00:00]} 7. c3 {[%emt 0:01:00]} O-O {[%emt 0:00:00]} 8. Na3 $11 {[%emt 0:04:30]} f6 9. Nc2 Qc7 10. g3 b5 11. Be3 {[%emt 0:21:00]} Bb7 {[%emt 0:33:00]} 12. Nd2 {[%emt 0:03:30]} e5 {[%emt 0:05:30]} 13. f5 {[%emt 0:01:30]} d4 {[%emt 0:05:30]} 14. Bf2 {[%emt 0:00:30]} g6 {[%emt 0:01:30]} 15. g4 {[%emt 0:05:30]} h5 {[%emt 0:02:30]} 16. Bg3 {[%emt 0:07:30]} hxg4 {[%emt 0:03:30]} 17. Bxg4 {[%emt 0:00:30]} Kg7 {[%emt 0:01:30]} 18. Qf3 {[%emt 0:01:30]} Rh8 {[%emt 0:04:30]} 19. fxg6 {[%emt 0:00:30]} Raf8 {[%emt 0:00:00]} 20. Rf2 {[%emt 0:11:30]} Nxg6 {[%emt 0:03:00]} 21. Rg2 {[%emt 0:01:30]} Nce7 {[%emt 0:01:30]} 22. Qe2 {[%emt 0:06:30]} f5 {[%emt 0:01:30]} 23. Bf3 {[%emt 0:00:30]} f4 {[%emt 0:04:30]} 24. Bf2 {[%emt 0:00:00]} Kf7 {[%emt 0:02:30]} 25. Bg4 {[%emt 0:00:00]} Rfg8 {[%emt 0:02:30]} 26. Nf3 {[%emt 0:02:30]} Bc8 {[%emt 0:00:30]} 27. Ng5+ {[%emt 0:05:30]} Kf6 {[%emt 0:00:00]} 28. Rf1 {[%emt 0:12:30]} Rh6 {[%emt 0:10:00]} 29. b4 {[%emt 0:02:30]} dxc3 {[%emt 0:02:39]} 30. bxc5 {[%emt 0:00:00]} Bxc5 {[%emt 0:00:00]} 31. d4 {[%emt 0:00:00]} exd4 {[%emt 0:00:29]} 32. Nxd4 {[%emt 0:01:30]} Ne5 {[%emt 0:03:25]} 33. Bxc8 {[%emt 0:01:07]} Qxc8 {[%emt 0:01:01]} 34. Nde6 {[%emt 0:00:41]} Bxf2+ {[%emt 0:05:59]} 35. Rfxf2 {[%emt 0:01:49]} N7c6 {[%emt 0:06:03]} 36. Rxf4+ {[%emt 0:00:30]} Ke7 {[%emt 0:00:27]} 37. Qxb5 {[%emt 0:05:39]} Rxe6 {[%emt 0:01:38]} 38. Nxe6 {[%emt 0:02:39]} Qxe6 {[%emt 0:00:34]} 39. Qc5+ {[%emt 0:02:23]} Kd7 {[%emt 0:00:04]} 40. Qxc3 {[%emt 0:00:33]} Rxg2+ {[%emt 0:00:30]} 41. Kxg2 {[%emt 0:00:30]} Qxa2+ {[%emt 0:00:00]} 42. Rf2 {[%emt 0:00:00]} Qg8+ {[%emt 0:00:00]} 43. Kh1 {[%emt 0:02:41]} Qg4 {[%emt 0:01:02]} 44. Qd2+ {[%emt 0:01:57]} Kc7 {[%emt 0:00:22]} 45. Rf4 {[%emt 0:00:00]} Qg6 {[%emt 0:01:16]} 46. Rf5 {[%emt 0:01:07]} Qe6 {[%emt 0:01:28]} 47. Qd5 {[%emt 0:01:15]} Qe7 {[%emt 0:00:12]} 48. Qd2 {[%emt 0:00:21]} a5 {[%emt 0:00:47]} 49. Qc2 {[%emt 0:01:06]} Qd6 {[%emt 0:01:12]} 50. h4 {[%emt 0:00:31]} Qe7 {[%emt 0:00:10]} 51. Qh2 {[%emt 0:01:33]} Qb4 {[%emt 0:00:04]} 52. Qg2 {[%emt 0:02:25]} Qe1+ {[%emt 0:00:37]} 53. Kh2 {[%emt 0:00:02]} Qxh4+ {[%emt 0:00:30]} 54. Kg1 {[%emt 0:00:30]} Qe1+ {[%emt 0:00:30]} 55. Kh2 {[%emt 0:00:30]} Qc3 {[%emt 0:00:30]} 56. Rf2 {[%emt 0:00:00]} Qc1 {[%emt 0:00:18]} 57. Rc2 {[%emt 0:00:25]} Qf4+ {[%emt 0:00:30]} 58. Kh1 {[%emt 0:00:30]} Qh4+ {[%emt 0:00:30]} 59. Kg1 {[%emt 0:00:30]} Qe1+ {[%emt 0:00:30]} 60. Kh2 {[%emt 0:00:00]} Qe3 {[%emt 0:02:18]} 61. Qg7+ {[%emt 0:00:08]} Kb6 {[%emt 0:00:30]} 62. Rb2+ {[%emt 0:00:30]} Kc5 {[%emt 0:00:30]} 63. Qf8+ {[%emt 0:00:30]} Kc4 {[%emt 0:00:30]} 64. Qg8+ {[%emt 0:00:00]} Kc3 {[%emt 0:00:30]} 65. Rb3+ {[%emt 0:00:00]} Kd2 {[%emt 0:00:30]} 66. Qg2+ {[%emt 0:00:08]} 1-0

[Event "TUR-ch U13-18 Open 2023"]
[Site "Antalya"]
[Date "2023.01.28"]
[Round "10"]
[White "Tarhan, Adar"]
[Black "Bektas, Cagan Erdem"]
[Result "1-0"]
[ECO "B38"]
[WhiteElo "2321"]
[BlackElo "1752"]
[Annotator "TA"]
[PlyCount "95"]
[EventDate "2023.01.17"]
[EventType "swiss"]
[EventCountry "TUR"]
[SourceTitle "playchess.com"]
[Source "ChessBase"]
[SourceQuality "1"]
[TimeControl "5400+30"]

{[%evp 23,95,56,57,49,49,49,60,39,29,20,38,19,24,27,42,45,36,0,44,-22,139,122,247,252,362,376,360,374,354,357,453,316,436,445,451,433,581,569,545,410,384,387,394,394,392,392,503,518,1004,910,1281,1072,1190,1009,1082,1006,29970,29970,29980,29981,29982,29982,29985,29986,29989,29990,29990,29991,29991,29992,29992,29993,29994,29995]} 1. e4 {[%emt 0:05:00]} c5 {[%emt 0:01:00]} 2. Nf3 {[%emt 0:00:30]} Nc6 {[%emt 0:00:30]} 3. d4 {[%emt 0:00:30]} cxd4 {[%emt 0:00:30]} 4. Nxd4 {[%emt 0:00:30]} g6 {[%emt 0:00:30]} 5. c4 {[%emt 0:00:30]} Bg7 {[%emt 0:00:30]} 6. Be3 {[%emt 0:00:00]} Nf6 {[%emt 0:00:00]} 7. Nc3 {[%emt 0:00:00]} O-O {[%emt 0:00:00]} 8. Be2 {[%emt 0:00:00]} Nxd4 {[%emt 0:00:00]} 9. Bxd4 {[%emt 0:00:00]} d6 {[%emt 0:00:00]} 10. O-O {[%emt 0:00:00]} Bd7 {[%emt 0:00:00]} 11. Qd2 {[%emt 0:01:00]} Bc6 {[%emt 0:00:00]} 12. f3 {[%emt 0:00:30]} Nd7 {[%emt 0:00:30]} 13. Bf2 {[%emt 0:00:30] B38: Sicilian: Maroczy Bind with 5...Bg7 and 7...0-0.} a5 {[%emt 0:00:30]} 14. b3 {[%emt 0:00:30]} Nc5 {[%emt 0:00:30]} 15. Rfc1 {[%emt 0:00:30] [#] White is slightly better.} e6 $146 {[%emt 0:01:30]} ({Predecessor:} 15... Qb6 16. Rab1 Rfc8 17. Rc2 Qd8 18. Bf1 Be5 19. Bh4 Qf8 20. Nd5 Bxd5 21. exd5 Bf6 {1-0 Asgari,M (2300)-Faghirnavaz,A (2317) IRI-ch Zahedan 2012 (6)}) 16. Rd1 {[%emt 0:03:30]} Be5 {[%emt 0:04:30]} 17. Rac1 {[%emt 0:01:30]} Qe7 {[%emt 0:13:30]} 18. Bf1 {[%emt 0:10:30]} f5 {[%emt 0:32:30]} 19. exf5 {[%emt 0:01:30]} Rxf5 {[%emt 0:01:30]} 20. Ne2 {[%emt 0:00:30] Against Bf4} Qf6 {[%emt 0:22:30][%cal Of5f3] [#] And now ...Rxf3! would win.} (20... Ne4 $5 21. fxe4 Rxf2 22. Kxf2 Rf8+ 23. Ke3 (23. Kg1 Bxh2+ {[%mdl 64] Decoy} 24. Kxh2 Qh4+ 25. Kg1 Qf2+ 26. Kh2 Qh4+ 27. Kg1 Qf2+ 28. Kh2 Qh4+ $11) 23... Qg5+ 24. Kd3 Bxe4+ {[%mdl 64] Decoy} 25. Kxe4 Qf5+ 26. Ke3 Qg5+ 27. Ke4 Qf5+ 28. Ke3 Qg5+ 29. Ke4 $11) 21. Ng3 {[%emt 0:03:30]} (21. Bg3 $14) 21... Bf4 $2 {[%emt 0:01:49]} ({Black should try} 21... Qh4 $11 22. Bd4 Rh5 23. Bxe5 (23. Nxh5 $2 Bxh2+ 24. Kh1 Bg3+ 25. Kg1 Qh2#) 23... Qxh2+ 24. Kf2 Rxe5 25. Qxd6 Rg5) 22. Be3 $16 {[%emt 0:00:30]} Bxg3 {[%emt 0:03:53] Loses the game.} (22... Bxe3+ $16 23. Qxe3 Re5) 23. hxg3 $18 {[%emt 0:00:30]} Bxf3 {[%emt 0:04:53]} (23... Nd7 $142 24. Qxd6 Re8) 24. gxf3 {[%emt 0:00:30]} Rxf3 {[%emt 0:00:11]} 25. Bg2 {[%emt 0:04:30]} ({Stronger than} 25. Qxd6 Ne4 26. Qb6 Nxg3 $11) 25... Rxg3 {[%emt 0:04:38]} 26. Qf2 {[%emt 0:03:30]} ({Weaker is} 26. Qxd6 Qf3 $14) 26... Qxf2+ {[%emt 0:06:16]} 27. Bxf2 {[%emt 0:00:30]} Rg4 {[%emt 0:00:36]} 28. Rxd6 {[%emt 0:01:30]} Ne4 {[%emt 0:00:30]} 29. Rxe6 {[%emt 0:00:00]} Ng5 {[%emt 0:00:52]} 30. Re3 {[%emt 0:00:00]} Rf8 {[%emt 0:00:00]} 31. Rg3 {[%emt 0:00:30]} Nf3+ {[%emt 0:01:41]} 32. Bxf3 {[%emt 0:00:30]} Rxg3+ {[%emt 0:00:30]} 33. Bxg3 {[%emt 0:00:30]} Rxf3 {[%emt 0:00:00][%mdl 4096] Endgame KRB-KR} 34. Bc7 {[%emt 0:00:30]} a4 {[%emt 0:00:00]} 35. bxa4 {[%emt 0:00:30] [#] Strongly threatening a5.} Ra3 {[%emt 0:00:12]} (35... Rf6 $142 36. c5 Rc6) 36. a5 {[%emt 0:00:30]} Rxa2 {[%emt 0:00:00]} 37. Rb1 {[%emt 0:00:00]} Kf7 {[%emt 0:00:13]} 38. Rxb7 {[%emt 0:00:00]} g5 {[%emt 0:01:56]} 39. Rb1 {[%emt 0:01:30]} g4 {[%emt 0:00:30]} 40. c5 {[%emt 0:00:00][%cal Bc4c5,Bc5c6,Bc6c7][%mdl 32] White mates.} Ke6 {[%emt 0:00:50]} 41. Rd1 {[%emt 0:00:00]} Kf5 {[%emt 0:00:25]} 42. Bb6 {[%emt 0:00:00]} Ke4 {[%emt 0:00:30]} 43. c6 {[%emt 0:00:00]} g3 {[%emt 0:00:25]} 44. c7 {[%emt 0:00:30]} Rc2 {[%emt 0:00:30]} 45. a6 {[%emt 0:00:30]} Kf3 {[%emt 0:00:30]} 46. a7 {[%emt 0:00:00]} Rg2+ {[%emt 0:00:28]} 47. Kf1 {[%emt 0:00:00]} Rh2 {[%emt 0:00:32]} 48. a8=Q+ {[%emt 0:00:00] Weighted Error Value: White=0.22 (precise) /Black=0.75} (48. c8=R Rh1+ {[%mdl 64] Skewer} 49. Bg1 g2+ {[%mdl 64] Deflection} 50. Ke1 Rxg1+ 51. Kd2 Rxd1+ 52. Kc2 Rc1+ {[%mdl 64] Skewer, Decoy, Promotion} 53. Kxc1 g1=Q+ 54. Kb2 Qxa7 55. Rc3+ Qe3 56. Rxe3+ Kxe3 57. Kc1 h5 58. Kd1 Kf2 59. Kc1 h4 60. Kd2 h3 61. Kc3 h2 62. Kd4 h1=Q 63. Kc5 Ke3 64. Kd6 Qe4 65. Kc7 Kd4 66. Kd6 Qd5+ 67. Ke7 Ke5 68. Kf8 Kf6 69. Ke8 Qd1 70. Kf8 Qd8#) 1-0

[Event "TUR-ch U13-18 Open 2023"]
[Site "Antalya"]
[Date "2023.01.28"]
[Round "10"]
[White "Gokcek, Kursat Bugra"]
[Black "Pasa, Ahmet"]
[Result "1-0"]
[ECO "A38"]
[WhiteElo "2116"]
[BlackElo "1581"]
[Annotator "TA"]
[PlyCount "63"]
[EventDate "2023.01.17"]
[EventType "swiss"]
[EventCountry "TUR"]
[SourceTitle "playchess.com"]
[Source "ChessBase"]
[SourceQuality "1"]
[TimeControl "5400+30"]

{[%evp 16,63,30,29,35,21,35,44,65,53,82,83,118,78,92,89,155,156,249,256,275,281,262,224,243,206,314,306,315,308,259,261,478,471,538,416,414,343,331,285,878,878,1802,1792,1708,1611,29991,29992,29992,29993]} 1. Nf3 c5 2. c4 g6 3. d4 cxd4 4. Nxd4 Nc6 5. g3 Bg7 6. Nc2 Nf6 7. Bg2 O-O 8. O-O d6 9. Nc3 a5 {[#] A38: Symmetrical English vs ...g6: 4 Bg2 Bg7 5 Nf3 Nf6.} 10. Na4 $146 ({Predecessor:} 10. b3 Bd7 11. Bb2 Qc8 12. e4 Bh3 13. f3 Bxg2 14. Kxg2 Nd7 15. Rb1 Re8 16. Ne3 Nc5 17. Ncd5 {1-0 Abramovic,B (2429)-Novoselski,Z (2369) SRB-chT Kragujevac 2013 (9.2)}) 10... Nd7 11. Be3 Nde5 {White is slightly better.} 12. b3 (12. Nb6 Ra6 13. Nxc8 Qxc8 $11) 12... Rb8 13. Rc1 h5 14. h3 {White is more active.} Bf5 15. Kh2 h4 16. g4 $16 Be6 (16... Bxc2 $16 {keeps fighting.} 17. Rxc2 (17. Qxc2 Nd7 $16) 17... Nd7) 17. f4 $18 {[%cal Bf2f4,Bf4f5][%mdl 32]} Nxg4+ (17... Nd7 $2 18. f5 $18) 18. hxg4 Bxg4 19. Bf3 Bxf3 20. Rxf3 ({Don't do} 20. exf3 $6 e6 21. Nd4 Nxd4) 20... e5 (20... e6 $142 21. Qg1 Re8) 21. f5 e4 22. Rf1 Be5+ 23. Kh1 Qf6 $2 {[#]} (23... Re8 24. Rg1 (24. fxg6 Qd7 $17) 24... Ne7) 24. Nb6 {[%cal Ba4b6,Bb6d5,Bd5f4][%mdl 32]} gxf5 25. Nd5 Qg6 26. Bf4 ({But not} 26. Rg1 Bg3 27. Qf1 Rbe8) 26... Kh8 27. Nce3 {A dynamic duo of knights.} Bxf4 (27... f6 28. Rf2 Rbd8) 28. Rxf4 Qg5 29. Rxf5 Qh6 30. Nf4 {[#] Qd5 is the strong threat.} Qg7 31. Rh5+ Kg8 32. Nf5 {Black did not feel at home in the position after the opening.   Weighted Error Value: White=0.14 (very precise) /Black=0.73} 1-0